{"text_format":"2","workbook":"xlsx","n_sheets":1,"sheets":["Tribal 1c."],"not_rendered":{"charts":0,"images":0,"macros":0,"external_links":0,"defined_names":2,"comments":0,"pivot_tables":0},"unopened":[],"bounds":{"document_bytes":16777216,"sheet_cells":100000,"run_cost":"one","rows_first":2000,"rows_last":500,"rows_between":2000,"halvings":0,"cell_chars":16384,"cell_head_chars":4096},"cells_cut":0,"cells_raw":0,"read":"whole","date_system":"1900"}

{"sheet":"Tribal 1c.","index":0,"n_rows":780,"n_cols":4,"rows_kept":780,"cut":false,"hidden":false,"merged":[[2,0,2,2],[0,0,0,3],[779,0,779,3]]}
["Table 1c. – DRAFT EECBG Program Formula Grant Funding Allocations to Indian tribes\nListed Alphabetically by State(s) and Indian tribe "]
[]
["Total (Indian Tribes)",null,null,{"$f":"SUM(D5:D778)","v":8800000}]
["#","State(s)","Entity Name","Allocation"]
[{"$f":" IFERROR(A4+1,1)","v":1},"AK","Afognak Native Corporation",10420]
[2,"AK","Agdaagux Tribe of King Cove",10270]
[3,"AK","Ahtna, Inc.",10650]
[4,"AK","Akhiok-Kaguyak, Inc.",10040]
[5,"AK","Akiachak Limited",10290]
[6,"AK","Akiachak Native Community",10290]
[7,"AK","Akiak Native Community",10170]
[8,"AK","Alakanuk Native Corporation",10420]
[9,"AK","Alaska Peninsula Corporation",10440]
[10,"AK","Alatna Village",10030]
[11,"AK","Aleknagik Natives Limited",10150]
[12,"AK","Aleut Corporation",12100]
[13,"AK","Alexander Creek Inc.",10010]
[14,"AK","Algaaciq Native Village (St. Mary’s)",10210]
[15,"AK","Allakaket Village",10120]
[16,"AK","Alutiiq Tribe of Old Harbor",10250]
[17,"AK","Angoon Community Association",10080]
[18,"AK","Anton Larsen, Inc.",10000]
[19,"AK","Anvik Village",10110]
[20,"AK","Arctic Slope Regional Corporation",17930]
[21,"AK","Arctic Village",10310]
[22,"AK","Arviq Incorporated",10030]
[23,"AK","Asa’carsarmiut Tribe",10510]
[24,"AK","Askinuk Corporation",10350]
[25,"AK","Atmautluak Limited",10230]
[26,"AK","Atqasuk Corporation",10080]
[27,"AK","Atxam Corporation",10080]
[28,"AK","Ayakulik Incorporated",10000]
[29,"AK","Azachorok Incorporated",10510]
[30,"AK","Baan-o-yeel kon Corporation",10100]
[31,"AK","Bay View Incorporated",10030]
[32,"AK","Bean Ridge Corporation",10030]
[33,"AK","Beaver Kwit'Chin Corporation",10110]
[34,"AK","Beaver Village",10110]
[35,"AK","Becharof Corporation",10130]
[36,"AK","Belkofski Corporation",10040]
[37,"AK","Bells Flats Natives Inc.",10260]
[38,"AK","Bering Straits Native Corporation",15380]
[39,"AK","Bethel Native Corporation",11200]
[40,"AK","Birch Creek Tribe",10040]
[41,"AK","Brevig Mission Native Corporation",10180]
[42,"AK","Bristol Bay Native Corporation",14540]
[43,"AK","Calista Corporation",22580]
[44,"AK","Cape Fox Corporation",10120]
[45,"AK","Central Council of the Tlingit & Haida Indian Tribes",21460]
[46,"AK","Chalkyitsik Native Corporation",10060]
[47,"AK","Chalkyitsik Village",10060]
[48,"AK","Chaluka Corporation",10060]
[49,"AK","Cheesh-Na Tribe",10070]
[50,"AK","Chefarnrmute Incorporated",10210]
[51,"AK","Chevak Company",10570]
[52,"AK","Chevak Native Village",10570]
[53,"AK","Chickaloon MooseCreek Native Association, Inc.",10120]
[54,"AK","Chickaloon Native Village",10120]
[55,"AK","Chignik Bay Tribal Council",10170]
[56,"AK","Chignik Lagoon Native Corporation",10170]
[57,"AK","Chignik Lake Village",10110]
[58,"AK","Chignik River Limited",10110]
[59,"AK","Chilkat Indian Village (Klukwan)",10100]
[60,"AK","Chilkoot Indian Association (Haines)",10200]
[61,"AK","Chinik Eskimo Community (Golovin)",10150]
[62,"AK","Chinuruk Incorporated",10150]
[63,"AK","Chitina Native Corporation",10130]
[64,"AK","Choggiung Ltd.",11110]
[{"$f":" IFERROR(A68+1,1)","v":65},"AK","Chugach Alaska Corporation",10720]
[66,"AK","Chuloonawick Corporation",10050]
[67,"AK","Chuloonawick Native Village",10050]
[68,"AK","Circle Native Community",10110]
[69,"AK","Cook Inlet Region, Inc.",12870]
[70,"AK","Council Native Corporation",10070]
[71,"AK","Craig Tribal Association",10180]
[72,"AK","Cully Corporation Inc.",10070]
[73,"AK","Curyung Tribal Council",11030]
[74,"AK","Danzhit Hanlaii, Corporation",10110]
[75,"AK","Deloy Ges Corporation",10110]
[76,"AK","Deloycheet, Incorporated",10270]
[77,"AK","Dineega, Corporation",10240]
[78,"AK","Dinyea Corporation",10110]
[79,"AK","Dot Lake Native Corporation",10050]
[80,"AK","Douglas Indian Association",10280]
[81,"AK","Doyon, Ltd.",15710]
[82,"AK","Egegik Village",10130]
[83,"AK","Eklutna Native Village",10140]
[84,"AK","Eklutna, Inc.",10140]
[85,"AK","Ekwok Natives Limited",10120]
[86,"AK","Elim Native Corporation",10220]
[87,"AK","Emmonak Corporation",10410]
[88,"AK","Emmonak Village",10410]
[89,"AK","Evansville Village (aka Bettles Field)",10050]
[90,"AK","Evansville, Inc.",10050]
[91,"AK","Far West, Inc.",10110]
[92,"AK","Galena Village (aka Louden Village)",10310]
[93,"AK","Gana-a 'Yoo, Limited",10960]
[94,"AK","Goldbelt, Incorporated",11390]
[95,"AK","Golovin Native Corporation",10150]
[96,"AK","Gulkana Village",10050]
[97,"AK","Gwitchyaazhee Corporation",10570]
[98,"AK","Haida Corporation",10160]
[99,"AK","Healy Lake Village",10010]
[100,"AK","Hee-yea Lingde Corporation",10140]
[101,"AK","Holy Cross Village",10270]
[102,"AK","Hoonah Indian Association",10430]
[103,"AK","Hughes Village",10070]
[104,"AK","Huna Totem Corporation",10430]
[105,"AK","Hungwitchin Corporation",10040]
[106,"AK","Huslia Village",10240]
[107,"AK","Hydaburg Cooperative Association",10160]
[108,"AK","Igiugig Native Corporation",10030]
[109,"AK","Igiugig Village",10030]
[110,"AK","Iliamna Natives Limited",10050]
[111,"AK","Inalik Native Corporation",10140]
[112,"AK","Inupiat Community of the Arctic Slope",14790]
[113,"AK","Iqfijouaq Company",10170]
[114,"AK","Iqugmiut Traditional Council",10190]
[115,"AK","Isanotski Corporation",10040]
[116,"AK","Ivanof Bay Tribe",10030]
[117,"AK","Kaguyak Village",10010]
[118,"AK","Kake Tribal Corporation",10360]
[119,"AK","Kaktovik Inupiat Corporation",10080]
[120,"AK","Kaktovik Village (aka Barter Island)",10080]
[121,"AK","Kasigluk Traditional Elders Council",10340]
[122,"AK","Kasigluk, Inc.",10340]
[123,"AK","Kavilco Incorporated",10070]
[124,"AK","Kenai Natives Association Inc.",10610]
[125,"AK","Kenaitze Indian Tribe",10610]
[126,"AK","Ketchikan Indian Community",12280]
[127,"AK","Kian Tr'ee Corporation",10000]
[128,"AK","Kijik Corporation",10180]
[{"$f":" IFERROR(A132+1,1)","v":129},"AK","Kikiktagruk Inupiat Corporation",11340]
[130,"AK","King Island Native Community",10250]
[131,"AK","King Island Native Corporation",10250]
[132,"AK","King Salmon Tribe",10030]
[133,"AK","Klawock Cooperative Association",10210]
[134,"AK","Klawock Heenya Corporation",10210]
[135,"AK","Klukwan, Inc.",10100]
[136,"AK","Knik Tribe",11000]
[137,"AK","Knikatnu, Inc.",11000]
[138,"AK","Kokarmuit Corporation",10170]
[139,"AK","Kokhanok Village",10100]
[140,"AK","Koliganek Natives Limited",10140]
[141,"AK","Kongnikilnomuit Yuita Corporation",10060]
[142,"AK","Koniag, Inc.",11980]
[143,"AK","Kootznoowoo Incorporated",10080]
[144,"AK","Kotlik Yupik Corporation",10290]
[145,"AK","K'oyitl'ots'ina Limited",10460]
[146,"AK","Koyuk Native Corporation",10210]
[147,"AK","Koyukuk Native Village",10140]
[148,"AK","Kugkaktlik Limited",10400]
[149,"AK","Kuitsarak, Inc.",10150]
[150,"AK","Kukulget, Inc.",10370]
[151,"AK","Kuukpik Corporation",10180]
[152,"AK","Kwethluk Incorporated",10460]
[153,"AK","Kwik Incorporated",10250]
[154,"AK","Leisnoi, Incorporated",10180]
[155,"AK","Levelock Natives Limited",10080]
[156,"AK","Levelock Village",10080]
[157,"AK","Lime Village",10010]
[158,"AK","Lime Village Company",10010]
[159,"AK","Litnik, Inc.",10000]
[160,"AK","Manley Hot Springs Village",10030]
[161,"AK","Manokotak Natives Limited",10260]
[162,"AK","Manokotak Village",10260]
[163,"AK","Mary's Igloo Native Corporation",10080]
[164,"AK","Maserculiq, Incorporated",10150]
[165,"AK","McGrath Native Village",10160]
[166,"AK","Mendas Cha-ag Native Corporation",10010]
[167,"AK","Mentasta Traditional Council",10090]
[168,"AK","Metlakatla Indian Community, Annette Island Reserve",10850]
[169,"AK","Montana Creek Native Association, Inc.",10000]
[170,"AK","MTNT Ltd.",10240]
[171,"AK","Nagamut Limited",10000]
[172,"AK","Naknek Native Village",10220]
[173,"AK","NANA Regional Corporation",13920]
[174,"AK","Napakiak Corporation",10240]
[175,"AK","Napaskiak Incorporated",10230]
[176,"AK","Native Village of Afognak",10270]
[177,"AK","Native Village of Akhiok",10030]
[178,"AK","Native Village of Akutan",10070]
[179,"AK","Native Village of Aleknagik",10150]
[180,"AK","Native Village of Ambler",10210]
[181,"AK","Native Village of Atka",10080]
[182,"AK","Native Village of Atqasuk",10080]
[183,"AK","Native Village of Barrow Inupiat Traditional Government",11740]
[184,"AK","Native Village of Belkofski",10040]
[185,"AK","Native Village of Brevig Mission",10180]
[186,"AK","Native Village of Buckland",10270]
[187,"AK","Native Village of Cantwell",10060]
[188,"AK","Native Village of Chenega (aka Chanega)",10130]
[189,"AK","Native Village of Chignik Lagoon",10110]
[190,"AK","Native Village of Chitina",10130]
[191,"AK","Native Village of Chuathbaluk (Russian Mission, Kuskokwim)",10070]
[192,"AK","Native Village of Council",10070]
[{"$f":" IFERROR(A196+1,1)","v":193},"AK","Native Village of Deering",10110]
[194,"AK","Native Village of Diomede (aka Inalik)",10140]
[195,"AK","Native Village of Eagle",10040]
[196,"AK","Native Village of Eek",10170]
[197,"AK","Native Village of Ekuk",10040]
[198,"AK","Native Village of Ekwok",10120]
[199,"AK","Native Village of Elim",10220]
[200,"AK","Native Village of Eyak (Cordova)",10230]
[201,"AK","Native Village of False Pass",10040]
[202,"AK","Native Village of Fort Yukon",10570]
[203,"AK","Native Village of Gakona",10030]
[204,"AK","Native Village of Gambell",10340]
[205,"AK","Native Village of Georgetown",10050]
[206,"AK","Native Village of Goodnews Bay",10150]
[207,"AK","Native Village of Hamilton",10020]
[208,"AK","Native Village of Hooper Bay",10890]
[209,"AK","Native Village of Kanatak",10080]
[210,"AK","Native Village of Karluk",10030]
[211,"AK","Native Village of Kiana",10360]
[212,"AK","Native Village of Kipnuk",10400]
[213,"AK","Native Village of Kivalina",10220]
[214,"AK","Native Village of Kluti Kaah (aka Copper Center)",10150]
[215,"AK","Native Village of Kobuk",10100]
[216,"AK","Native Village of Kongiganak",10260]
[217,"AK","Native Village of Kotzebue",11340]
[218,"AK","Native Village of Koyuk",10210]
[219,"AK","Native Village of Kwigillingok",10250]
[220,"AK","Native Village of Kwinhagak (aka Quinhagak)",10360]
[221,"AK","Native Village of Larsen Bay",10210]
[222,"AK","Native Village of Marshall (aka Fortuna Ledge)",10150]
[223,"AK","Native Village of Mary’s Igloo",10080]
[224,"AK","Native Village of Mekoryuk",10180]
[225,"AK","Native Village of Minto",10210]
[226,"AK","Native Village of Nanwalek (aka English Bay)",10150]
[227,"AK","Native Village of Napaimute",10030]
[228,"AK","Native Village of Napakiak",10240]
[229,"AK","Native Village of Napaskiak",10230]
[230,"AK","Native Village of Nelson Lagoon",10020]
[231,"AK","Native Village of Nightmute",10120]
[232,"AK","Native Village of Nikolski",10060]
[233,"AK","Native Village of Noatak",10300]
[234,"AK","Native Village of Nuiqsut (aka Nooiksut)",10180]
[235,"AK","Native Village of Nunam Iqua",10110]
[236,"AK","Native Village of Nunapitchuk",10340]
[237,"AK","Native Village of Ouzinkie",10180]
[238,"AK","Native Village of Paimiut",10030]
[239,"AK","Native Village of Perryville",10090]
[240,"AK","Native Village of Pilot Point",10080]
[241,"AK","Native Village of Point Hope",10530]
[242,"AK","Native Village of Point Lay",10070]
[243,"AK","Native Village of Port Graham",10120]
[244,"AK","Native Village of Port Heiden",10080]
[245,"AK","Native Village of Port Lions",10140]
[246,"AK","Native Village of Ruby",10240]
[247,"AK","Native Village of Saint Michael",10230]
[248,"AK","Native Village of Savoonga",10370]
[249,"AK","Native Village of Scammon Bay",10350]
[250,"AK","Native Village of Selawik",10420]
[251,"AK","Native Village of Shaktoolik",10160]
[252,"AK","Native Village of Shishmaref",10380]
[253,"AK","Native Village of Shungnak",10180]
[254,"AK","Native Village of Stevens",10110]
[255,"AK","Native Village of Tanacross",10050]
[256,"AK","Native Village of Tanana",10560]
[{"$f":" IFERROR(A260+1,1)","v":257},"AK","Native Village of Tatitlek",10090]
[258,"AK","Native Village of Tazlina",10070]
[259,"AK","Native Village of Teller",10080]
[260,"AK","Native Village of Tetlin",10130]
[261,"AK","Native Village of Tuntutuliak",10230]
[262,"AK","Native Village of Tununak",10230]
[263,"AK","Native Village of Tyonek",10270]
[264,"AK","Native Village of Unalakleet",10610]
[265,"AK","Native Village of Unga",10090]
[266,"AK","Native Village of Wales",10110]
[267,"AK","Native Village of White Mountain",10160]
[268,"AK","Natives of Kodiak, Incorporated",10680]
[269,"AK","Nelson Lagoon Corporation",10020]
[270,"AK","Nenana Native Association",10360]
[271,"AK","Nerklikmute Native Corporation",10110]
[272,"AK","New Koliganek Village Council",10140]
[273,"AK","New Stuyahok Village",10270]
[274,"AK","Newhalen Village",10110]
[275,"AK","Newtok Native Corporation",10170]
[276,"AK","Newtok Village",10170]
[277,"AK","Nikolai Village",10060]
[278,"AK","Nima Corporation",10180]
[279,"AK","Ninilchik Natives Association, Inc.",10350]
[280,"AK","Ninilchik Village",10350]
[281,"AK","Nome Eskimo Community",11190]
[282,"AK","Nondalton Village",10180]
[283,"AK","Noorvik Native Community",10410]
[284,"AK","Northway Natives Incorporated",10200]
[285,"AK","Northway Village",10200]
[286,"AK","Nulato Village",10350]
[287,"AK","Nunakauiak Yupik Corporation",10380]
[288,"AK","Nunakauyarmiut Tribe",10380]
[289,"AK","Nunamiut Corporation, Inc.",10160]
[290,"AK","Nunapiglluraq Corporation",10020]
[291,"AK","Nunapitchuk Limited",10340]
[292,"AK","Oceanside Corporation",10090]
[293,"AK","Ohog Incorporated",10060]
[294,"AK","Old Harbor Native Corporation",10250]
[295,"AK","Olgoonik Corporation",10300]
[296,"AK","Olsonville, Incorporated",10000]
[297,"AK","Organized Village of Grayling (aka Holikachuk)",10140]
[298,"AK","Organized Village of Kake",10360]
[299,"AK","Organized Village of Kasaan",10070]
[300,"AK","Organized Village of Kwethluk",10460]
[301,"AK","Organized Village of Saxman",10120]
[302,"AK","Orutsararmiut Traditional Native Council",11200]
[303,"AK","Oscarville Native Corporation",10040]
[304,"AK","Oscarville Traditional Village",10040]
[305,"AK","Ounalashka Corporation",10300]
[306,"AK","Ouzinkie Native Corporation",10180]
[307,"AK","Paimiut Corporation",10030]
[308,"AK","Paug-Vik Incorporated, Limited",10220]
[309,"AK","Pauloff Harbor Village",10030]
[310,"AK","Pedro Bay Corporation",10060]
[311,"AK","Pedro Bay Village",10060]
[312,"AK","Petersburg Indian Association",10140]
[313,"AK","Pilot Point Native Corporation",10080]
[314,"AK","Pilot Station Traditional Village",10330]
[315,"AK","Pilot Station, Incorporated",10330]
[316,"AK","Pitkas Point Native Corporation",10060]
[317,"AK","Pitka's Point Traditional Council",10060]
[318,"AK","Platinum Traditional Village",10030]
[319,"AK","Portage Creek Village (aka Ohgsenakale)",10040]
[320,"AK","Qagan Tayagungin Tribe of Sand Point Village",10290]
[{"$f":" IFERROR(A324+1,1)","v":321},"AK","Qanirtuuq, Inc.",10360]
[322,"AK","Qawalangin Tribe of Unalaska",10300]
[323,"AK","Qemirtalek Coast Corporation",10260]
[324,"AK","Rampart Village",10100]
[325,"AK","Russian Mission Native Corporation",10190]
[326,"AK","Saguyak Incorporated",10080]
[327,"AK","Saint George Island",10230]
[328,"AK","Saint Paul Island",10570]
[329,"AK","Salamatof Native Association, Inc.",10160]
[330,"AK","Salamatof Tribe",10160]
[331,"AK","Sanak Corporation",10030]
[332,"AK","Sea Lion Corporation",10890]
[333,"AK","Sealaska Corporation",28330]
[334,"AK","Seldovia Native Association, Inc.",10210]
[335,"AK","Seldovia Village Tribe",10210]
[336,"AK","Seth-de-ya-ah Corporation",10210]
[337,"AK","Shaan-Seet, Incorporated",10180]
[338,"AK","Shageluk Native Village",10110]
[339,"AK","Shaktoolik Native Corporation",10160]
[340,"AK","Shee Atiká, Incorporated",11600]
[341,"AK","Shishmaref Native Corporation",10380]
[342,"AK","Shumagin Corporation",10290]
[343,"AK","Shuyak, Inc.",10000]
[344,"AK","Sitka Tribe of Alaska",11600]
[345,"AK","Sitnasuak Native Corporation",11190]
[346,"AK","Sivuqaq, Inc.",10340]
[347,"AK","Skagway Village",10040]
[348,"AK","Solomon Native Corporation",10060]
[349,"AK","South Naknek Village",10100]
[350,"AK","St. George Tanaq Corporation",10230]
[351,"AK","St. Mary's Native Corporation",10210]
[352,"AK","St. Michael Native Corporation",10230]
[353,"AK","Stebbins Community Association",10390]
[354,"AK","Stebbins Native Corporation",10390]
[355,"AK","Stuyahok Limited",10270]
[356,"AK","Sun’aq Tribe of Kodiak",10680]
[357,"AK","Swan Lake Corporation",10110]
[358,"AK","Takotna Village",10010]
[359,"AK","Tanacross Incorporated",10050]
[360,"AK","Tanadgusix Corporation",10570]
[361,"AK","Tanalian, Incorporated",10070]
[362,"AK","Tangirnaq Native Village",10180]
[363,"AK","Telida Village",10000]
[364,"AK","Teller Native Corporation",10080]
[365,"AK","Tetlin Native Corporation",10130]
[366,"AK","The Akutan Corp",10070]
[367,"AK","The Chenega Corporation",10130]
[368,"AK","The English Bay Corporation",10150]
[369,"AK","The Eyak Corporation",10230]
[370,"AK","The King Cove Corporation",10270]
[371,"AK","The Kuskokwim Corporation",10830]
[372,"AK","The Port Graham Corporation",10120]
[373,"AK","The Tatitlek Corporation",10090]
[374,"AK","The Tyonek Native Corporation",10270]
[375,"AK","Tihteet'aii, Incorporated",10040]
[376,"AK","Tikigaq Corporation",10530]
[377,"AK","Toghotthele Corporation",10360]
[378,"AK","Togiak Natives Limited",10460]
[379,"AK","Tozitna, Limited",10560]
[380,"AK","Traditional Village of Togiak",10460]
[381,"AK","Tulkisarmute Incorporated",10230]
[382,"AK","Tuluksak Native Community",10230]
[383,"AK","Tuntutuliak Land, Limited",10240]
[384,"AK","Tununrmiut Rinit Corporation",10230]
[{"$f":" IFERROR(A388+1,1)","v":385},"AK","Twin Hills Native Corporation",10050]
[386,"AK","Twin Hills Village",10050]
[387,"AK","Uganik Natives Inc.",10000]
[388,"AK","Ugashik Village",10060]
[389,"AK","Ukpeaġvik Iñupiat Corporation (UIC)",11740]
[390,"AK","Umkumiut Native Village",10030]
[391,"AK","Unalakleet Native Corporation",10610]
[392,"AK","Unga Corporation",10090]
[393,"AK","Uyak Natives, Inc.",10000]
[394,"AK","Village of Alakanuk",10420]
[395,"AK","Village of Anaktuvuk Pass",10160]
[396,"AK","Village of Aniak",10230]
[397,"AK","Village of Atmautluak",10230]
[398,"AK","Village of Bill Moore’s Slough",10060]
[399,"AK","Village of Chefornak",10210]
[400,"AK","Village of Clarks Point",10080]
[401,"AK","Village of Crooked Creek",10080]
[402,"AK","Village of Dot Lake",10050]
[403,"AK","Village of Iliamna",10050]
[404,"AK","Village of Kalskag",10110]
[405,"AK","Village of Kaltag",10170]
[406,"AK","Village of Kotlik",10290]
[407,"AK","Village of Lower Kalskag",10150]
[408,"AK","Village of Ohogamiut",10060]
[409,"AK","Village of Red Devil",10010]
[410,"AK","Village of Sleetmute",10050]
[411,"AK","Village of Solomon",10060]
[412,"AK","Village of Stony River",10030]
[413,"AK","Village of Venetie (Native Village of Venetie Tribal Government)",10060]
[414,"AK","Village of Wainwright",10300]
[415,"AK","Wales Native Corporation",10110]
[416,"AK","White Mountain Native Corporation",10160]
[417,"AK","Wrangell Cooperative Association",10300]
[418,"AK","Yak-tat Kwaan Incorporated",10300]
[419,"AK","Yakutat Tlingit Tribe",10300]
[420,"AK","Yupiit of Andreafski",10110]
[421,"AK","Zho-Tse, Incorporated",10110]
[422,"AL","Poarch Band of Creek Indians",11020]
[423,"AZ","Ak-Chin Indian Community",10400]
[424,"AZ","Cocopah Tribe of Arizona",10430]
[425,"AZ","Fort McDowell Yavapai Nation, Arizona",10310]
[426,"AZ","Gila River Indian Community of the Gila River Indian Reservation, Arizona",18090]
[427,"AZ","Havasupai Tribe of the Havasupai Reservation, Arizona",10270]
[428,"AZ","Hopi Tribe of Arizona",15210]
[429,"AZ","Hualapai Indian Tribe of the Hualapai Indian Reservation, Arizona",10860]
[430,"AZ","Kaibab Band of Paiute Indians of the Kaibab Indian Reservation, Arizona",10130]
[431,"AZ","Pascua Yaqui Tribe of Arizona",17490]
[432,"AZ","Salt River Pima-Maricopa Indian Community of the Salt River Reservation, Arizona",13850]
[433,"AZ","San Carlos Apache Tribe of the San Carlos Reservation, Arizona",15960]
[434,"AZ","San Juan Southern Paiute Tribe of Arizona",10070]
[435,"AZ","Tohono O’odham Nation of Arizona",22580]
[436,"AZ","Tonto Apache Tribe of Arizona",10060]
[437,"AZ","White Mountain Apache Tribe of the Fort Apache Reservation, Arizona",16070]
[438,"AZ","Yavapai-Apache Nation of the Camp Verde Indian Reservation, Arizona",10930]
[439,"AZ","Yavapai-Prescott Indian Tribe",10060]
[440,"AZ/CA","Colorado River Indian Tribes of the Colorado River Indian Reservation, Arizona and California",11620]
[441,"AZ/CA","Quechan Tribe of the Fort Yuma Indian Reservation, California & Arizona",11410]
[442,"AZ/NM/UT","Navajo Nation, Arizona, New Mexico & Utah",152090]
[443,"CA","Agua Caliente Band of Cahuilla Indians of the Agua Caliente Indian Reservation, California",10180]
[444,"CA","Alturas Indian Rancheria, California",10000]
[445,"CA","Augustine Band of Cahuilla Indians, California",10010]
[446,"CA","Bear River Band of the Rohnerville Rancheria, California",10230]
[447,"CA","Berry Creek Rancheria of Maidu Indians of California",10230]
[448,"CA","Big Lagoon Rancheria, California",10010]
[{"$f":" IFERROR(A452+1,1)","v":449},"CA","Big Pine Paiute Tribe of the Owens Valley",10190]
[450,"CA","Big Sandy Rancheria of Western Mono Indians of California",10210]
[451,"CA","Big Valley Band of Pomo Indians of the Big Valley Rancheria, California",10430]
[452,"CA","Bishop Paiute Tribe",10760]
[453,"CA","Blue Lake Rancheria, California",10020]
[454,"CA","Bridgeport Indian Colony",10040]
[455,"CA","Buena Vista Rancheria of Me-Wuk Indians of California",10010]
[456,"CA","Cabazon Band of Mission Indians, California",10020]
[457,"CA","Cachil DeHe Band of Wintun Indians of the Colusa Indian Community of the Colusa Rancheria, California",10040]
[458,"CA","Cahto Tribe of the Laytonville Rancheria",10050]
[459,"CA","Cahuilla Band of Indians",10170]
[460,"CA","California Valley Miwok Tribe, California",10000]
[461,"CA","Campo Band of Diegueno Mission Indians of the Campo Indian Reservation, California",10110]
[462,"CA","Capitan Grande Band of Diegueno Mission Indians of California (Barona Group of Capitan Grande Band of Mission Indians of the Barona Reservation, California)",10210]
[463,"CA","Cedarville Rancheria, California",10010]
[464,"CA","Chemehuevi Indian Tribe of the Chemehuevi Reservation, California",10430]
[465,"CA","Cher-Ae Heights Indian Community of the Trinidad Rancheria, California",10090]
[466,"CA","Chicken Ranch Rancheria of Me-Wuk Indians of California",10010]
[467,"CA","Cloverdale Rancheria of Pomo Indians of California",10230]
[468,"CA","Cold Springs Rancheria of Mono Indians of California",10060]
[469,"CA","Coyote Valley Band of Pomo Indians of California",10140]
[470,"CA","Dry Creek Rancheria Band of Pomo Indians, California",10450]
[471,"CA","Elem Indian Colony of Pomo Indians of the Sulphur Bank Rancheria, California",10040]
[472,"CA","Elk Valley Rancheria, California",10030]
[473,"CA","Enterprise Rancheria of Maidu Indians of California",10380]
[474,"CA","Ewiiaapaayp Band of Kumeyaay Indians, California",10000]
[475,"CA","Federated Indians of Graton Rancheria, California",10520]
[476,"CA","Fort Bidwell Indian Community of the Fort Bidwell Reservation of California",10130]
[477,"CA","Fort Independence Indian Community of Paiute Indians of the Fort Independence Reservation, California",10080]
[478,"CA","Greenville Rancheria",10060]
[479,"CA","Grindstone Indian Rancheria of Wintun-Wailaki Indians of California",10040]
[480,"CA","Guidiville Rancheria of California",10060]
[481,"CA","Habematolel Pomo of Upper Lake, California",10100]
[482,"CA","Hoopa Valley Tribe, California",11250]
[483,"CA","Hopland Band of Pomo Indians, California",10320]
[484,"CA","Iipay Nation of Santa Ysabel, California",10330]
[485,"CA","Inaja Band of Diegueno Mission Indians of the Inaja and Cosmit Reservation, California",10010]
[486,"CA","Ione Band of Miwok Indians of California",10270]
[487,"CA","Jackson Band of Miwuk Indians",10010]
[488,"CA","Jamul Indian Village of California",10030]
[489,"CA","Karuk Tribe",11320]
[490,"CA","Kashia Band of Pomo Indians of the Stewarts Point Rancheria, California",10390]
[491,"CA","Kletsel Dehe Band of Wintun Indians",10090]
[492,"CA","Koi Nation of Northern California",10030]
[493,"CA","La Jolla Band of Luiseno Indians, California",10240]
[494,"CA","La Posta Band of Diegueno Mission Indians of the La Posta Indian Reservation, California",10010]
[495,"CA","Lone Pine Paiute-Shoshone Tribe",10120]
[496,"CA","Los Coyotes Band of Cahuilla and Cupeno Indians, California",10140]
[497,"CA","Lytton Rancheria of California",10150]
[498,"CA","Manchester Band of Pomo Indians of the Manchester Rancheria, California",10390]
[499,"CA","Manzanita Band of Diegueno Mission Indians of the Manzanita Reservation, California",10050]
[500,"CA","Mechoopda Indian Tribe of Chico Rancheria, California",10230]
[501,"CA","Mesa Grande Band of Diegueno Mission Indians of the Mesa Grande Reservation, California",10300]
[502,"CA","Middletown Rancheria of Pomo Indians of California",10090]
[503,"CA","Mooretown Rancheria of Maidu Indians of California",10400]
[504,"CA","Morongo Band of Mission Indians, California",10350]
[505,"CA","NorthFork Rancheria of Mono Indians of California",10820]
[506,"CA","Pala Band of Mission Indians",10370]
[507,"CA","Paskenta Band of Nomlaki Indians of California",10100]
[508,"CA","Pauma Band of Luiseno Mission Indians of the Pauma & Yuima Reservation, California",10090]
[509,"CA","Pechanga Band of Indians",10730]
[510,"CA","Picayune Rancheria of Chukchansi Indians of California",10470]
[511,"CA","Pinoleville Pomo Nation, California",10120]
[512,"CA","Pit River Tribe, California",11250]
[{"$f":" IFERROR(A516+1,1)","v":513},"CA","Potter Valley Tribe, California",10000]
[514,"CA","Quartz Valley Indian Community of the Quartz Valley Reservation of California",10130]
[515,"CA","Ramona Band of Cahuilla, California",10000]
[516,"CA","Redding Rancheria, California",10140]
[517,"CA","Redwood Valley or Little River Band of Pomo Indians of the Redwood Valley Rancheria California",10090]
[518,"CA","Resighini Rancheria, California",10050]
[519,"CA","Rincon Band of Luiseno Mission Indians of the Rincon Reservation, California",10180]
[520,"CA","Robinson Rancheria",10200]
[521,"CA","Round Valley Indian Tribes, Round Valley Reservation, California",11950]
[522,"CA","San Pasqual Band of Diegueno Mission Indians of California",10060]
[523,"CA","Santa Rosa Band of Cahuilla Indians, California",10070]
[524,"CA","Santa Rosa Indian Community of the Santa Rosa Rancheria, California",10400]
[525,"CA","Santa Ynez Band of Chumash Mission Indians of the Santa Ynez Reservation, California",10040]
[526,"CA","Scotts Valley Band of Pomo Indians of California",10110]
[527,"CA","Sherwood Valley Rancheria of Pomo Indians of California",10160]
[528,"CA","Shingle Springs Band of Miwok Indians, Shingle Springs Rancheria (Verona Tract), California",10180]
[529,"CA","Soboba Band of Luiseno Indians, California",10540]
[530,"CA","Susanville Indian Rancheria, California",10460]
[531,"CA","Sycuan Band of the Kumeyaay Nation",10100]
[532,"CA","Table Mountain Rancheria",10040]
[533,"CA","Tejon Indian Tribe",10400]
[534,"CA","Tolowa Dee-ni’ Nation",10660]
[535,"CA","Torres Martinez Desert Cahuilla Indians, California",10220]
[536,"CA","Tule River Indian Tribe of the Tule River Reservation, California",10690]
[537,"CA","Tuolumne Band of Me-Wuk Indians of the Tuolumne Rancheria of California",10170]
[538,"CA","Twenty-Nine Palms Band of Mission Indians of California",10010]
[539,"CA","United Auburn Indian Community of the Auburn Rancheria of California",10160]
[540,"CA","Utu Utu Gwaitu Paiute Tribe of the Benton Paiute Reservation, California",10050]
[541,"CA","Viejas (Baron Long) Group of Capitan Grande Band of Mission Indians of the Viejas Reservation, California",10120]
[542,"CA","Wilton Rancheria, California",10320]
[543,"CA","Wiyot Tribe, California",10230]
[544,"CA","Yocha Dehe Wintun Nation, California",10030]
[545,"CA","Yuhaaviatam of San Manuel Nation",10100]
[546,"CA","Yurok Tribe of the Yurok Reservation, California",12250]
[547,"CA/NV","Fort Mojave Indian Tribe of Arizona, California & Nevada",10510]
[548,"CA/NV","Timbisha Shoshone Tribe",10140]
[549,"CA/NV","Washoe Tribe of Nevada & California (Carson Colony, Dresslerville Colony, Woodfords Community, Stewart Community & Washoe Ranches)",10500]
[550,"CO","Southern Ute Indian Tribe of the Southern Ute Reservation, Colorado",10530]
[551,"CO/NM/UT","Ute Mountain Ute Tribe",10750]
[552,"CT","Mashantucket Pequot Indian Tribe",10380]
[553,"CT","Mohegan Tribe of Indians of Connecticut",10800]
[554,"FL","Miccosukee Tribe of Indians",10210]
[555,"FL","Seminole Tribe of Florida",11530]
[556,"IA","Sac and Fox Tribe of the Mississippi in Iowa",10520]
[557,"ID","Coeur D'Alene Tribe",10910]
[558,"ID","Kootenai Tribe of Idaho",10060]
[559,"ID","Nez Perce Tribe",11260]
[560,"ID","Shoshone-Bannock Tribes of the Fort Hall Reservation",12150]
[561,"IN/MI","Pokagon Band of Potawatomi Indians, Michigan and Indiana",12090]
[562,"KS","Kickapoo Tribe of Indians of the Kickapoo Reservation in Kansas",10560]
[563,"KS","Prairie Band Potawatomi Nation",11610]
[564,"KS/NE","Iowa Tribe of Kansas and Nebraska",11610]
[565,"KS/NE","Sac and Fox Nation of Missouri in Kansas and Nebraska",10170]
[566,"LA","Chitimacha Tribe of Louisiana",10540]
[567,"LA","Coushatta Tribe of Louisiana",10340]
[568,"LA","Jena Band of Choctaw Indians",10140]
[569,"LA","Tunica-Biloxi Indian Tribe",10540]
[570,"MA","Mashpee Wampanoag Tribe",11050]
[571,"MA","Wampanoag Tribe of Gay Head (Aquinnah)",10490]
[572,"ME","Houlton Band of Maliseet Indians",10670]
[573,"ME","Mi'kmaq Nation",10550]
[574,"ME","Passamaquoddy Tribe1 ",11330]
[575,"ME","Penobscot Nation",10850]
[576,"MI","Bay Mills Indian Community, Michigan",10790]
[{"$f":" IFERROR(A580+1,1)","v":577},"MI","Grand Traverse Band of Ottawa and Chippewa Indians, Michigan",11490]
[578,"MI","Hannahville Indian Community, Michigan",10350]
[579,"MI","Keweenaw Bay Indian Community, Michigan",11270]
[580,"MI","Lac Vieux Desert Band of Lake Superior Chippewa Indians of Michigan",10280]
[581,"MI","Little River Band of Ottawa Indians, Michigan",11460]
[582,"MI","Little Traverse Bay Bands of Odawa Indians, Michigan",11610]
[583,"MI","Match-e-be-nash-she-wish Band of Pottawatomi Indians of Michigan",10210]
[584,"MI","Nottawaseppi Huron Band of the Potawatomi, Michigan",10570]
[585,"MI","Saginaw Chippewa Indian Tribe of Michigan",11250]
[586,"MI","Sault Ste. Marie Tribe of Chippewa Indians, Michigan",26040]
[587,"MN","Lower Sioux Indian Community in the State of Minnesota",10420]
[588,"MN","Minnesota Chippewa - Boise Forte Band",11270]
[589,"MN","Minnesota Chippewa - Fond Du Lac Band",11490]
[590,"MN","Minnesota Chippewa - Grand Portage Band",10380]
[591,"MN","Minnesota Chippewa - Leech Lake Band",13460]
[592,"MN","Minnesota Chippewa Tribe - Mille Lacs Band",11720]
[593,"MN","Minnesota Chippewa Tribe - White Earth Band",16220]
[594,"MN","Prairie Island Indian Community in the State of Minnesota",10380]
[595,"MN","Red Lake Band of Chippewa Indians, Minnesota",15360]
[596,"MN","Shakopee Mdewakanton Sioux Community of Minnesota",10220]
[597,"MN","Upper Sioux Community, Minnesota",10190]
[598,"MS","Mississippi Band of Choctaw Indians",13920]
[599,"MT","Assiniboine and Sioux Tribes of the Fort Peck Indian Reservation, Montana",14690]
[600,"MT","Blackfeet Tribe of the Blackfeet Indian Reservation of Montana",16130]
[601,"MT","Chippewa Cree Indians of the Rocky Boy’s Reservation, Montana",12420]
[602,"MT","Confederated Salish and Kootenai Tribes of the Flathead Reservation",12850]
[603,"MT","Crow Tribe of Montana",15100]
[604,"MT","Fort Belknap Indian Community of the Fort Belknap Reservation of Montana",12950]
[605,"MT","Little Shell Tribe of Chippewa Indians",12010]
[606,"MT","Northern Cheyenne Tribe of the Northern Cheyenne Indian Reservation, Montana",14150]
[607,"NC","Eastern Band of Cherokee Indians",15700]
[608,"ND","Spirit Lake Tribe, North Dakota",12690]
[609,"ND","Three Affiliated Tribes of the Fort Berthold Reservation, North Dakota",15960]
[610,"ND","Turtle Mountain Band of Chippewa Indians of North Dakota",21600]
[611,"ND/SD","Standing Rock Sioux Tribe of North & South Dakota",15730]
[612,"NE","Omaha Tribe of Nebraska",12460]
[613,"NE","Ponca Tribe of Nebraska",11760]
[614,"NE","Santee Sioux Nation, Nebraska",11030]
[615,"NE","Winnebago Tribe of Nebraska",11890]
[616,"NM","Jicarilla Apache Nation, New Mexico",11420]
[617,"NM","Mescalero Apache Tribe of the Mescalero Reservation, New Mexico",11860]
[618,"NM","Ohkay Owingeh, New Mexico",11060]
[619,"NM","Pueblo of Acoma, New Mexico",11850]
[620,"NM","Pueblo of Cochiti, New Mexico",10460]
[621,"NM","Pueblo of Isleta, New Mexico",11770]
[622,"NM","Pueblo of Jemez, New Mexico",11390]
[623,"NM","Pueblo of Laguna, New Mexico",13140]
[624,"NM","Pueblo of Nambe, New Mexico",10360]
[625,"NM","Pueblo of Picuris, New Mexico",10130]
[626,"NM","Pueblo of Pojoaque, New Mexico",10200]
[627,"NM","Pueblo of San Felipe, New Mexico",11380]
[628,"NM","Pueblo of San Ildefonso, New Mexico",10270]
[629,"NM","Pueblo of Sandia, New Mexico",10160]
[630,"NM","Pueblo of Santa Ana, New Mexico",10360]
[631,"NM","Pueblo of Santa Clara, New Mexico",10470]
[632,"NM","Pueblo of Taos, New Mexico",10930]
[633,"NM","Pueblo of Tesuque, New Mexico",10200]
[634,"NM","Pueblo of Zia, New Mexico",10330]
[635,"NM","Santo Domingo Pueblo",11970]
[636,"NM","Zuni Tribe of the Zuni Reservation, New Mexico",14480]
[637,"NV","Duckwater Shoshone Tribe of the Duckwater Reservation, Nevada",10150]
[638,"NV","Las Vegas Tribe of Paiute Indians of the Las Vegas Indian Colony, Nevada",10020]
[639,"NV","Lovelock Paiute Tribe of the Lovelock Indian Colony, Nevada",10180]
[640,"NV","Moapa Band of Paiute Indians of the Moapa River Indian Reservation, Nevada",10120]
[{"$f":" IFERROR(A644+1,1)","v":641},"NV","Paiute-Shoshone Tribe of the Fallon Reservation and Colony, Nevada",10550]
[642,"NV","Pyramid Lake Paiute Tribe of the Pyramid Lake Reservation, Nevada",11060]
[643,"NV","Reno-Sparks Indian Colony, Nevada",10420]
[644,"NV","Shoshone-Paiute Tribes of the Duck Valley Reservation, Nevada",10800]
[645,"NV","Summit Lake Paiute Tribe of Nevada",10060]
[646,"NV","Te-Moak Tribe of Western Shoshone Indians of Nevada (Four constituent bands: Battle Mountain Band; Elko Band; South Fork Band and Wells Band)",10880]
[647,"NV","Walker River Paiute Tribe of the Walker River Reservation, Nevada",10860]
[648,"NV","Winnemucca Indian Colony of Nevada",10010]
[649,"NV","Yerington Paiute Tribe of the Yerington Colony and Campbell Ranch, Nevada",10450]
[650,"NV","Yomba Shoshone Tribe of the Yomba Reservation, Nevada",10060]
[651,"NV ","Ely Shoshone Tribe of Nevada",10280]
[652,"NV/OR","Fort McDermitt Paiute and Shoshone Tribes of the Fort McDermitt Indian Reservation, Nevada and Oregon",10370]
[653,"NV/UT","Confederated Tribes of the Goshute Reservation, Nevada and Utah",10230]
[654,"NY","Cayuga Nation",10190]
[655,"NY","Oneida Indian Nation",10340]
[656,"NY","Oneida Nation",16150]
[657,"NY","Onondaga Nation",10000]
[658,"NY","Saint Regis Mohawk Tribe",15760]
[659,"NY","Seneca Nation of Indians",13020]
[660,"NY","Shinnecock Indian Nation",10570]
[661,"NY","Tonawanda Band of Seneca",10000]
[662,"NY","Tuscarora Nation",10000]
[663,"OK","Absentee-Shawnee Tribe of Indians of Oklahoma",11590]
[664,"OK","Alabama-Quassarte Tribal Town",10170]
[665,"OK","Apache Tribe of Oklahoma",10940]
[666,"OK","Caddo Nation of Oklahoma",12390]
[667,"OK","Cherokee Nation",149070]
[668,"OK","Cheyenne and Arapaho Tribes, Oklahoma",14590]
[669,"OK","Citizen Potawatomi Nation, Oklahoma",22920]
[670,"OK","Comanche Nation, Oklahoma",16220]
[671,"OK","Delaware Nation, Oklahoma",10670]
[672,"OK","Delaware Tribe of Indians",14080]
[673,"OK","Eastern Shawnee Tribe of Oklahoma",11300]
[674,"OK","Fort Sill Apache Tribe of Oklahoma",10280]
[675,"OK","Iowa Tribe of Oklahoma",10320]
[676,"OK","Kaw Nation, Oklahoma",11300]
[677,"OK","Kialegee Tribal Town",10270]
[678,"OK","Kickapoo Tribe of Oklahoma",10950]
[679,"OK","Kiowa Indian Tribe of Oklahoma",13770]
[680,"OK","Miami Tribe of Oklahoma",12100]
[681,"OK","Modoc Nation",10170]
[682,"OK","Otoe-Missouria Tribe of Indians, Oklahoma",11160]
[683,"OK","Ottawa Tribe of Oklahoma",11140]
[684,"OK","Pawnee Nation of Oklahoma",11290]
[685,"OK","Peoria Tribe of Indians of Oklahoma",11270]
[686,"OK","Ponca Tribe of Indians of Oklahoma",11420]
[687,"OK","Quapaw Nation",11990]
[688,"OK","Sac and Fox Nation, Oklahoma",11440]
[689,"OK","Seneca–Cayuga Nation",11920]
[690,"OK","Shawnee Tribe",11120]
[691,"OK","The Chickasaw Nation",35720]
[692,"OK","The Choctaw Nation of Oklahoma",82030]
[693,"OK","The Muscogee (Creek) Nation",42290]
[694,"OK","The Osage Nation",18150]
[695,"OK","The Seminole Nation of Oklahoma",16630]
[696,"OK","Thlopthlocco Tribal Town",10400]
[697,"OK","Tonkawa Tribe of Indians of Oklahoma",10310]
[698,"OK","United Keetoowah Band of Cherokee Indians in Oklahoma",14910]
[699,"OK","Wichita and Affiliated Tribes (Wichita, Keechi, Waco & Tawakonie), Oklahoma",11240]
[700,"OK","Wyandotte Nation",12390]
[701,"OR","Burns Paiute Tribe",10150]
[702,"OR","Confederated Tribes of Siletz Indians of Oregon",11970]
[703,"OR","Confederated Tribes of the Coos, Lower Umpqua and Siuslaw Indians",10450]
[704,"OR","Confederated Tribes of the Grand Ronde Community of Oregon",11980]
[{"$f":" IFERROR(A708+1,1)","v":705},"OR","Confederated Tribes of the Umatilla Indian Reservation",11120]
[706,"OR","Confederated Tribes of the Warm Springs Reservation of Oregon",11910]
[707,"OR","Coquille Indian Tribe",10400]
[708,"OR","Cow Creek Band of Umpqua Tribe of Indians",10670]
[709,"OR","Klamath Tribes",12000]
[710,"RI","Narragansett Indian Tribe",11180]
[711,"SC","Catawba Indian Nation (aka Catawba Tribe of South Carolina)",11230]
[712,"SD","Cheyenne River Sioux Tribe of the Cheyenne River Reservation, South Dakota",17910]
[713,"SD","Crow Creek Sioux Tribe of the Crow Creek Reservation, South Dakota",11520]
[714,"SD","Flandreau Santee Sioux Tribe of South Dakota",10270]
[715,"SD","Lower Brule Sioux Tribe of the Lower Brule Reservation, South Dakota",11550]
[716,"SD","Oglala Sioux Tribe",26250]
[717,"SD","Rosebud Sioux Tribe of the Rosebud Indian Reservation, South Dakota",22570]
[718,"SD","Sisseton-Wahpeton Oyate of the Lake Traverse Reservation, South Dakota",15090]
[719,"SD","Yankton Sioux Tribe of South Dakota",13220]
[720,"TX","Alabama-Coushatta Tribe of Texas",10490]
[721,"TX","Kickapoo Traditional Tribe of Texas",10390]
[722,"TX","Ysleta del Sur Pueblo",11670]
[723,"UT","Northwestern Band of the Shoshone Nation",10200]
[724,"UT","Paiute Indian Tribe of Utah (Cedar Band of Paiutes, Kanosh Band of Paiutes, Koosharem Band of Paiutes, Indian Peaks Band of Paiutes, and Shivwits Band of Paiutes",10330]
[725,"UT","Skull Valley Band of Goshute Indians of Utah",10050]
[726,"UT","Ute Indian Tribe of the Uintah & Ouray Reservation, Utah",11000]
[727,"VA","Chickahominy Indian Tribe",10410]
[728,"VA","Chickahominy Indian Tribe—Eastern Division",10080]
[729,"VA","Monacan Indian Nation",10910]
[730,"VA","Nansemond Indian Tribe",10140]
[731,"VA","Pamunkey Indian Tribe",10150]
[732,"VA","Rappahannock Tribe, Inc.",10090]
[733,"VA","Upper Mattaponi Tribe",10220]
[734,"WA","Confederated Tribes and Bands of the Yakama Nation",13910]
[735,"WA","Confederated Tribes of the Chehalis Reservation",10350]
[736,"WA","Confederated Tribes of the Colville Reservation",13360]
[737,"WA","Cowlitz Indian Tribe",11550]
[738,"WA","Hoh Indian Tribe",10090]
[739,"WA","Jamestown S’Klallam Tribe",10190]
[740,"WA","Kalispel Indian Community of the Kalispel Reservation",10170]
[741,"WA","Lower Elwha Tribal Community",10320]
[742,"WA","Lummi Tribe of the Lummi Reservation",11880]
[743,"WA","Makah Indian Tribe of the Makah Indian Reservation",11100]
[744,"WA","Muckleshoot Indian Tribe",11080]
[745,"WA","Nisqually Indian Tribe",10300]
[746,"WA","Nooksack Indian Tribe",10680]
[747,"WA","Port Gamble S’Klallam Tribe",10480]
[748,"WA","Puyallup Tribe of the Puyallup Reservation",12010]
[749,"WA","Quileute Tribe of the Quileute Reservation",10300]
[750,"WA","Quinault Indian Nation",11210]
[751,"WA","Samish Indian Nation",10760]
[752,"WA","Sauk-Suiattle Indian Tribe",10120]
[753,"WA","Shoalwater Bay Indian Tribe of the Shoalwater Bay Indian Reservation",10160]
[754,"WA","Skokomish Indian Tribe",10280]
[755,"WA","Snoqualmie Indian Tribe",10260]
[756,"WA","Spokane Tribe of the Spokane Reservation",11050]
[757,"WA","Squaxin Island Tribe of the Squaxin Island Reservation",10400]
[758,"WA","Stillaguamish Tribe of Indians of Washington",10130]
[759,"WA","Suquamish Indian Tribe of the Port Madison Reservation",10440]
[760,"WA","Swinomish Indian Tribal Community",10360]
[761,"WA","Tulalip Tribes of Washington",11790]
[762,"WA","Upper Skagit Indian Tribe",10480]
[763,"WI","Bad River Band of the Lake Superior Tribe of Chippewa Indians of the Bad River Reservation, Wisconsin",13080]
[764,"WI","Forest County Potawatomi Community, Wisconsin",10600]
[765,"WI","Ho-Chunk Nation of Wisconsin",12780]
[766,"WI","Lac Courte Oreilles Band of Lake Superior Chippewa Indians of Wisconsin",12910]
[767,"WI","Lac du Flambeau Band of Lake Superior Chippewa Indians of the Lac du Flambeau Reservation of Wisconsin",11450]
[768,"WI","Menominee Indian Tribe of Wisconsin",13190]
[{"$f":" IFERROR(A772+1,1)","v":769},"WI","Red Cliff Band of Lake Superior Chippewa Indians of Wisconsin",12690]
[770,"WI","Sokaogon Chippewa Community, Wisconsin",10580]
[771,"WI","St. Croix Chippewa Indians of Wisconsin",10370]
[772,"WI","Stockbridge Munsee Community, Wisconsin",10570]
[773,"WY","Eastern Shoshone Tribe of the Wind River Reservation, Wyoming",11580]
[774,"WY","Northern Arapaho Tribe of the Wind River Reservation, Wyoming",13740]
[]
["1The formula allocation made to the Passamaquoddy Tribe will be distributed to two entities upon grant award: $6,600 to Pleasant Point and $4,670 to Indian Township."]